fUST/lending_fUST_20250106
["ID","MTS","AMOUNT","RATE_DAILY","PERIOD"]
[347865292,1736170245186,-12250.23,0.00020273,3]
[347865294,1736170245196,-904.2,0.00020273,3]
[347865296,1736170245205,-2489.56,0.00020273,3]
[347865298,1736170245215,-500.0,0.00020273,3]
[347865300,1736170245224,-500.0,0.00020273,3]
[347865302,1736170245234,-944.18,0.00020273,3]
[347865304,1736170245243,-500.0,0.00020273,3]
[347865306,1736170245252,-500.0,0.00020273,3]
[347865308,1736170245260,-500.0,0.00020273,3]
[347865310,1736170245270,-500.0,0.00020273,3]
[347865312,1736170245280,-500.0,0.00020273,3]
[347865314,1736170245289,-413.51,0.00020273,3]
[347865316,1736170245302,-500.0,0.00020273,3]
[347865318,1736170245311,-500.0,0.00020273,3]
[347865320,1736170245320,-150.08,0.00020274,3]
[347865322,1736170245330,-500.0,0.00020274,3]
[347865324,1736170245339,-286.28156008,0.00020274,3]
[347865326,1736170245349,-500.0,0.00020274,3]
[347865328,1736170245359,-150.08,0.00020274,3]
[347865330,1736170245368,-150.08,0.00020274,2]
[347865332,1736170245379,-8579.45924867,0.00020279,2]
[347865334,1736170245388,-300.0,0.000203,8]
[347865336,1736170245398,-8776.43875886,0.00020314,5]
[347865338,1736170245407,-262.818498,0.00020314,2]
[347865340,1736170245416,-254.443136,0.00020314,2]
[347865342,1736170245426,-254.443136,0.00020314,2]
[347865344,1736170245435,-183.324007,0.00020314,2]
[347865347,1736170245444,-151.0,0.00020314,2]
[347865350,1736170245454,-512.28727141,0.00020381,2]
[347865353,1736170245464,-1000.0,0.00020402,2]
[347865355,1736170245474,-160.0,0.00020492,5]
[347865357,1736170245483,-160.93468141,0.00020492,5]
[347865359,1736170245493,-151.0,0.000205,3]
[347865362,1736170245502,-151.0,0.000205,3]
[347865364,1736170245512,-506.449632,0.00020521,2]
[347865368,1736170245521,-8579.45924867,0.00020521,2]
[347865371,1736170245531,-1465.22,0.00020547,3]
[347865373,1736170245540,-237.310602,0.00020547,2]
[347865375,1736170245549,-383.87723638,0.00020547,3]
[347865377,1736170245558,-500.0,0.00020547,3]
[347865379,1736170245568,-500.0,0.00020547,3]
[347865381,1736170245577,-182.51715259,0.00020547,3]
[347865383,1736170245587,-1231.69,0.00020547,3]
[347865385,1736170245596,-3446.05,0.00020547,3]
[347865387,1736170245605,-1120.07,0.00020547,3]
[347865389,1736170245615,-1747.11,0.00020547,3]
[347865391,1736170245624,-1185.99,0.00020547,3]
[347865393,1736170245634,-500.0,0.00020547,3]
[347865394,1736170245643,-500.0,0.00020547,3]
[347865395,1736170245652,-500.0,0.00020547,3]
[347865396,1736170245661,-833.92,0.00020547,3]
[347865397,1736170245671,-500.0,0.00020547,3]
[347865398,1736170245680,-344.68,0.00020547,3]
[347865399,1736170245690,-829.04,0.00020547,3]
[347865400,1736170245699,-12250.23,0.00020547,3]
[347865401,1736170245708,-904.2,0.00020547,3]
[347865402,1736170245721,-2489.56,0.00020547,3]
[347865403,1736170245731,-500.0,0.00020547,3]
[347865404,1736170245742,-500.0,0.00020547,3]
[347865405,1736170245751,-80.78286849,0.00020547,3]
[347865406,1736170245773,-863.39713151,0.00020547,3]
[347865407,1736170245783,-500.0,0.00020547,3]
[347865408,1736170245792,-500.0,0.00020547,3]
[347865409,1736170245802,-116.82286849,0.00020547,3]
[347865414,1736170245836,-383.17713151,0.00020547,3]
[347865416,1736170245846,-500.0,0.00020547,3]
[347865418,1736170245856,-500.0,0.00020547,3]
[347865420,1736170245865,-500.0,0.00020547,3]
[347865422,1736170245874,-500.0,0.00020547,3]
[347865437,1736170245884,-36.88422985,0.00020548,3]
[347865440,1736170246029,-250.4653605,0.00020548,3]
[347865442,1736170246039,-500.0,0.00020548,3]
[347865444,1736170246049,-239.8646395,0.00020548,3]
[347865446,1736170246061,-387.45933581,0.00020548,3]
[347865448,1736170246070,-150.08,0.00020548,3]
[347865450,1736170246080,-108.80743595,0.000207,2]
[347865461,1736170246178,-250.0,0.0001646,2]
[347865463,1736170246188,-2727.4,0.000207,2]
[347865466,1736170246200,-22163.79256405,0.000207,2]
[347865468,1736170246209,-506.449632,0.00020712,2]
[347865470,1736170246218,-8579.45924867,0.00020762,2]
[347865472,1736170246227,-16651.21246403,0.000208,4]
[347865474,1736170246236,-161.083103,0.00020807,2]
[347865476,1736170246246,-1465.22,0.00020821,3]
[347865478,1736170246256,-151.0,0.00020821,2]
[347865480,1736170246265,-151.0,0.00020821,2]
[347865481,1736170246274,-254.443136,0.00020821,2]
[347865484,1736170246285,-254.443136,0.00020821,2]
[347865486,1736170246295,-625.11,0.00020821,3]
[347865487,1736170246307,-500.0,0.00020821,3]
[347865489,1736170246316,-1231.69,0.00020821,3]
[347865491,1736170246325,-3446.05,0.00020821,3]
[347865493,1736170246334,-1120.07,0.00020821,3]
[347865495,1736170246344,-1185.99,0.00020821,3]
[347865497,1736170246353,-500.0,0.00020821,3]
[347865499,1736170246363,-500.0,0.00020821,3]
[347865501,1736170246373,-155.42,0.00020821,3]
[347865503,1736170246383,-833.92,0.00020821,3]
[347865505,1736170246393,-500.0,0.00020821,3]
[347865507,1736170246403,-829.04,0.00020821,3]
[347865509,1736170246412,-12250.23,0.00020821,3]
[347865511,1736170246422,-904.2,0.00020821,3]
[347865513,1736170246431,-2489.56,0.00020821,3]
[347865515,1736170246441,-500.0,0.00020821,3]
[347865517,1736170246450,-500.0,0.00020821,3]
[347865519,1736170246459,-944.18,0.00020821,3]
[347865522,1736170246470,-500.0,0.00020821,3]
[347865524,1736170246479,-500.0,0.00020821,3]
[347865526,1736170246489,-500.0,0.00020821,3]
[347865528,1736170246498,-500.0,0.00020821,3]
[347865529,1736170246509,-500.0,0.00020821,3]
[347865532,1736170246518,-500.0,0.00020821,3]
[347865533,1736170246528,-189.56259944,0.00020821,3]
[347865536,1736170246537,-500.0,0.00020822,3]
[347865538,1736170246547,-200.30811268,0.00020822,3]
[347865539,1736170246556,-1644.59,0.000209,2]
[347865542,1736170246566,-506.449632,0.00020904,2]
[347865544,1736170246577,-39895.64527327,0.00021,2]
[347865546,1736170246586,-10000.0,0.00021,5]
[347865548,1736170246595,-71741.42491866,0.00021,2]
[347865550,1736170246607,-35989.2819,0.00021,2]
[347865741,1736170356373,10000.0,0.00015002,30]
[347865742,1736170369855,10000.0,0.00015002,10]
[347865743,1736170378794,10000.0,0.00015002,10]
[347865744,1736170409814,5600.0,0.00015002,10]
[347865745,1736170535383,161.083103,0.00013973,2]
[347865747,1736170995120,250.0,0.00014886,2]
[347865748,1736171011311,250.0,0.00014886,2]
[347865750,1736171178387,250.0,0.00014886,2]
[347865754,1736171395781,161.083103,0.00013973,2]
[347865809,1736171432400,-3426.9500444,0.00017289,2]
[347865811,1736171432410,-300.0,0.00017387,2]
[347865812,1736171432419,-300.0,0.00017563,2]
[347865814,1736171432428,-5764.4499556,0.00017564,2]
[347865824,1736171432512,-1351.76872764,0.00017564,2]
[347865826,1736171432524,-17783.78131676,0.00017564,2]
[347865829,1736171432534,-416.21868292,0.00017707,2]
[347866521,1736171440462,-1295.16131128,0.00017707,2]
[347866523,1736171440471,-250.0,0.00017811,2]
[347866525,1736171440481,-479.76348,0.00017843,2]
[347866527,1736171440490,-151.0,0.00017991,2]
[347866529,1736171440499,-151.0,0.00017991,2]
[347866531,1736171440509,-151.0,0.00017991,2]
[347866533,1736171440518,-151.0,0.00017991,2]
[347866535,1736171440527,-151.0,0.00017991,2]
[347866536,1736171440537,-151.0,0.00017991,2]
[347866538,1736171440546,-151.0,0.00017991,2]
[347866540,1736171440557,-223.545093,0.00017991,2]
[347866542,1736171440566,-151.0,0.00018,2]
[347866544,1736171440575,-153.11,0.000186,2]
[347866546,1736171440585,-151.0,0.000189,2]
[347866548,1736171440594,-1179.5730254,0.000189,2]
[347866550,1736171440604,-151.0,0.00019,2]
[347866552,1736171440619,-302.90913937,0.00019,2]
[347866554,1736171440628,-167.72776494,0.00019075,2]
[347866556,1736171440638,-151.0,0.00019078,2]
[347866558,1736171440647,-225.915,0.00019078,2]
[347866560,1736171440656,-192.24772116,0.00019078,2]
[347866562,1736171440666,-505.87878661,0.00019078,2]
[347866564,1736171440675,-151.0,0.000191,2]
[347866566,1736171440686,-5041.23071231,0.000191,2]
[347866568,1736171440695,-5041.23071222,0.000191,2]
[347866570,1736171440704,-420.0,0.00019172,2]
[347866572,1736171440713,-500.0,0.00019173,2]
[347866574,1736171440723,-151.9,0.00019173,2]
[347866576,1736171440732,-266.82848203,0.00019173,2]
[347866577,1736171440741,-500.0,0.00019173,2]
[347866579,1736171440750,-500.0,0.00019173,2]
[347866581,1736171440759,-500.0,0.00019173,2]
[347866583,1736171440768,-500.0,0.00019173,2]
[347866585,1736171440778,-378.91203245,0.00019174,2]
[347866587,1736171440787,-500.0,0.00019174,2]
[347866589,1736171440796,-500.0,0.00019174,2]
[347866591,1736171440806,-500.0,0.00019174,2]
[347866593,1736171440815,-500.0,0.00019174,2]
[347866595,1736171440825,-500.0,0.00019174,2]
[347866597,1736171440835,-500.0,0.00019174,2]
[347866599,1736171440845,-500.0,0.00019174,2]
[347866601,1736171440854,-500.0,0.00019174,2]
[347866603,1736171440864,-500.0,0.00019174,2]
[347866606,1736171440873,-500.0,0.00019174,2]
[347866608,1736171440883,-500.0,0.00019174,2]
[347866609,1736171440892,-500.0,0.00019174,2]
[347866611,1736171440902,-500.0,0.00019174,2]
[347866613,1736171440911,-500.0,0.00019174,2]
[347866616,1736171440921,-500.0,0.00019174,2]
[347866617,1736171440930,-396.1458011,0.00019174,2]
[347866619,1736171440939,-500.0,0.00019174,2]
[347866621,1736171440948,-500.0,0.00019174,2]
[347866623,1736171440958,-500.0,0.00019174,2]
[347866625,1736171440967,-399.82149655,0.00019174,2]
[347866628,1736171440982,-100.17850345,0.00019174,2]
[347866630,1736171440991,-500.0,0.00019174,2]
[347866632,1736171441000,-500.0,0.00019174,2]
[347866634,1736171441009,-500.0,0.00019174,2]
[347866636,1736171441018,-500.0,0.00019174,2]
[347866638,1736171441027,-500.0,0.00019174,2]
[347866640,1736171441036,-500.0,0.00019174,2]
[347866642,1736171441045,-500.0,0.00019174,2]
[347866644,1736171441055,-500.0,0.00019174,2]
[347866646,1736171441065,-500.0,0.00019174,2]
[347866648,1736171441074,-356.839847,0.00019174,2]
[347866666,1736171441239,-143.160153,0.00019174,2]
[347866668,1736171441249,-500.0,0.00019174,2]
[347866670,1736171441259,-275.44773278,0.00019174,2]
[347866717,1736171443309,-224.55226722,0.00019174,2]
[347866719,1736171443319,-500.0,0.00019174,2]
[347866721,1736171443329,-500.0,0.00019174,2]
[347866723,1736171443339,-500.0,0.00019174,2]
[347866725,1736171443349,-500.0,0.00019174,2]
[347866727,1736171443359,-500.0,0.00019174,2]
[347866741,1736171443475,-500.0,0.00019174,2]
[347866743,1736171443490,-500.0,0.00019174,2]
[347866745,1736171443500,-431.98908326,0.00019174,2]
[347866747,1736171443510,-500.0,0.00019174,2]
[347866749,1736171443521,-500.0,0.00019174,2]
[347866751,1736171443531,-500.0,0.00019174,2]
[347866753,1736171443542,-500.0,0.00019174,2]
[347866755,1736171443552,-500.0,0.00019174,2]
[347866757,1736171443562,-500.0,0.00019174,2]
[347866760,1736171443571,-500.0,0.00019174,2]
[347866762,1736171443581,-500.0,0.00019174,2]
[347866763,1736171443591,-500.0,0.00019174,2]
[347866765,1736171443600,-500.0,0.00019174,2]
[347866767,1736171443610,-365.45303607,0.00019174,2]
[347866769,1736171443625,-500.0,0.00019174,2]
[347866771,1736171443635,-500.0,0.00019174,2]
[347866773,1736171443644,-500.0,0.00019174,2]
[347866776,1736171443654,-500.0,0.00019174,2]
[347866777,1736171443664,-500.0,0.00019174,2]
[347866780,1736171443674,-500.0,0.00019174,2]
[347866781,1736171443683,-500.0,0.00019174,2]
[347866784,1736171443693,-500.0,0.00019174,2]
[347866786,1736171443703,-500.0,0.00019174,2]
[347866787,1736171443713,-499.0,0.00019177,2]
[347866789,1736171443723,-2074.63,0.00019178,2]
[347866792,1736171443732,-500.0,0.00019178,2]
[347866794,1736171443741,-500.0,0.00019178,2]
[347866796,1736171443751,-500.0,0.00019178,2]
[347866797,1736171443760,-500.0,0.00019178,2]
[347866799,1736171443769,-500.0,0.00019178,2]
[347866801,1736171443780,-500.0,0.00019178,2]
[347866803,1736171443790,-500.0,0.00019178,2]
[347866805,1736171443799,-487.31,0.00019178,2]
[347866807,1736171443808,-500.0,0.00019178,2]
[347866809,1736171443818,-500.0,0.00019178,2]
[347866811,1736171443829,-500.0,0.00019178,2]
[347866813,1736171443841,-500.0,0.00019178,2]
[347866815,1736171443851,-426.07517084,0.00019178,2]
[347866817,1736171443863,-2889.65,0.00019178,2]
[347866819,1736171443873,-500.0,0.00019178,2]
[347866821,1736171443882,-500.0,0.00019178,2]
[347866823,1736171443891,-500.0,0.00019178,2]
[347866825,1736171443901,-500.0,0.00019178,2]
[347866827,1736171443910,-500.0,0.00019178,2]
[347866829,1736171443919,-1026.73,0.00019178,2]
[347866831,1736171443928,-1087.16,0.00019178,2]
[347866833,1736171443937,-500.0,0.00019178,2]
[347866835,1736171443947,-500.0,0.00019178,2]
[347866837,1736171443956,-500.0,0.00019178,2]
[347866839,1736171443965,-500.0,0.00019178,2]
[347866841,1736171443975,-500.0,0.00019178,2]
[347866843,1736171443985,-500.0,0.00019178,2]
[347866845,1736171443996,-11229.38,0.00019178,2]
[347866847,1736171444005,-799.17,0.00019178,2]
[347866849,1736171444014,-500.0,0.00019178,2]
[347866851,1736171444024,-500.0,0.00019178,2]
[347866853,1736171444033,-500.0,0.00019178,2]
[347866855,1736171444044,-500.0,0.00019178,2]
[347866857,1736171444053,-594.51560932,0.00019178,2]
[347866859,1736171444063,-500.0,0.00019178,2]
[347866861,1736171444072,-500.0,0.00019178,2]
[347866863,1736171444082,-968.61,0.00019178,2]
[347866865,1736171444091,-828.85,0.00019178,2]
[347866867,1736171444100,-500.0,0.00019178,2]
[347866869,1736171444109,-500.0,0.00019178,2]
[347866871,1736171444119,-500.0,0.00019178,2]
[347866872,1736171444128,-500.0,0.00019178,2]
[347866874,1736171444138,-500.0,0.00019178,2]
[347866876,1736171444147,-868.87,0.00019178,2]
[347866878,1736171444157,-500.0,0.00019178,2]
[347866880,1736171444166,-500.0,0.00019178,2]
[347866882,1736171444175,-500.0,0.00019178,2]
[347866884,1736171444185,-300.0,0.00019178,2]
[347866886,1736171444194,-500.0,0.00019178,2]
[347866888,1736171444203,-500.0,0.00019178,2]
[347866890,1736171444212,-500.0,0.00019178,2]
[347866892,1736171444222,-500.0,0.00019178,2]
[347866894,1736171444231,-500.0,0.00019178,2]
[347866896,1736171444240,-500.0,0.00019178,2]
[347866898,1736171444249,-500.0,0.00019178,2]
[347866900,1736171444258,-500.0,0.00019178,2]
[347866902,1736171444267,-500.0,0.00019178,2]
[347866904,1736171444276,-556.42,0.00019178,2]
[347866906,1736171444286,-500.0,0.00019178,2]
[347866908,1736171444295,-1131.19,0.00019178,2]
[347866910,1736171444305,-500.0,0.00019178,2]
[347866912,1736171444314,-500.0,0.00019178,2]
[347866914,1736171444323,-500.0,0.00019178,2]
[347866916,1736171444333,-302.8788636,0.0001919,2]
[347866918,1736171444342,-5041.23071222,0.00019245,2]
[347866920,1736171444351,-160.0,0.00019291,3]
[347866922,1736171444360,-150.0,0.00019294,2]
[347866924,1736171444369,-535.0,0.00019294,2]
[347866926,1736171444378,-2081.0,0.00019294,2]
[347866928,1736171444387,-331.32402487,0.00019294,2]
[347867002,1736171446299,-372.21519123,0.0001753,2]
[347867009,1736171446357,-269.38334153,0.0001753,2]
[347867156,1736172235381,8732.92966469,0.00025,120]
[347867157,1736172329312,161.083103,0.00013973,2]
[347867163,1736172632631,-585.94071047,0.0001722,2]
[347867164,1736172632730,-876.79142681,0.0001722,2]
[347867165,1736172632740,-4211.88927539,0.00017394,2]
[347867166,1736172632750,-3482.55496907,0.0001757,2]
[347867167,1736172632762,-429.33430632,0.0001757,2]
[347867168,1736172632771,-239.88174,0.00017814,2]
[347867169,1736172632783,-300.0,0.00018107,2]
[347867170,1736172632793,-4697.34630053,0.00018108,2]
[347867171,1736172632806,-20202.65369947,0.00018108,2]
[347867172,1736172632815,-180.732,0.00019078,2]
[347867174,1736172632824,-1618.81211704,0.00019078,2]
[347867176,1736172632834,-500.0,0.00019173,2]
[347867178,1736172632843,-500.0,0.00019177,2]
[347867180,1736172632853,-500.0,0.00019177,2]
[347867182,1736172632862,-500.0,0.00019177,2]
[347867184,1736172632872,-500.0,0.00019177,2]
[347867187,1736172632881,-500.0,0.00019177,2]
[347867189,1736172632890,-310.14533258,0.00019177,2]
[347867191,1736172632901,-500.0,0.00019177,2]
[347867192,1736172632911,-214.6654537,0.00019177,2]
[347867194,1736172632920,-336.5453036,0.00019177,2]
[347867196,1736172632930,-500.0,0.00019177,2]
[347867198,1736172632939,-498.8031993,0.00019178,2]
[347867200,1736172632949,-500.0,0.00019178,2]
[347867202,1736172632958,-500.0,0.00019178,2]
[347867204,1736172632967,-500.0,0.00019178,2]
[347867207,1736172632977,-528.26951452,0.00019178,2]
[347867208,1736172632986,-500.0,0.00019178,2]
[347867211,1736172632996,-500.0,0.00019178,2]
[347867213,1736172633005,-500.0,0.00019178,2]
[347867214,1736172633015,-500.0,0.00019178,2]
[347867216,1736172633024,-500.0,0.00019178,2]
[347867218,1736172633034,-500.0,0.00019178,2]
[347867220,1736172633043,-500.0,0.00019178,2]
[347867222,1736172633053,-500.0,0.00019178,2]
[347867224,1736172633063,-500.0,0.00019178,2]
[347867226,1736172633073,-500.0,0.00019178,2]
[347867229,1736172633082,-500.0,0.00019178,2]
[347867231,1736172633092,-500.0,0.00019178,2]
[347867233,1736172633101,-500.0,0.00019178,2]
[347867234,1736172633111,-500.0,0.00019178,2]
[347867237,1736172633121,-500.0,0.00019178,2]
[347867239,1736172633131,-500.0,0.00019178,2]
[347867240,1736172633140,-500.0,0.00019178,2]
[347867243,1736172633149,-569.41,0.00019178,2]
[347867245,1736172633159,-500.0,0.00019178,2]
[347867247,1736172633168,-294.42373908,0.00019178,2]
[347867248,1736172633177,-500.0,0.00019178,2]
[347867251,1736172633187,-500.0,0.00019178,2]
[347867252,1736172633196,-500.0,0.00019178,2]
[347867255,1736172633206,-500.0,0.00019178,2]
[347867257,1736172633215,-500.0,0.00019178,2]
[347867258,1736172633224,-500.0,0.00019178,2]
[347867260,1736172633233,-500.0,0.00019178,2]
[347867262,1736172633243,-500.0,0.00019178,2]
[347867264,1736172633252,-500.0,0.00019178,2]
[347867266,1736172633262,-500.0,0.00019178,2]
[347867267,1736172633274,-228.18,0.00019178,2]
[347867268,1736172633283,-500.0,0.00019178,2]
[347867269,1736172633293,-3182.06,0.00019178,2]
[347867270,1736172633302,-500.0,0.00019178,2]
[347867271,1736172633313,-500.0,0.00019178,2]
[347867272,1736172633323,-158.48,0.00019178,2]
[347867274,1736172633333,-1747.11,0.00019178,2]
[347867275,1736172633343,-1091.28,0.00019178,2]
[347867277,1736172633353,-500.0,0.00019178,2]
[347867278,1736172633363,-500.0,0.00019178,2]
[347867279,1736172633372,-500.0,0.00019178,2]
[347867280,1736172633382,-500.0,0.00019178,2]
[347867282,1736172633391,-500.0,0.00019178,2]
[347867283,1736172633400,-500.0,0.00019178,2]
[347867284,1736172633410,-500.0,0.00019178,2]
[347867285,1736172633420,-500.0,0.00019178,2]
[347867286,1736172633439,-500.0,0.00019178,2]
[347867287,1736172633451,-500.0,0.00019178,2]
[347867288,1736172633461,-500.0,0.00019178,2]
[347867289,1736172633471,-500.0,0.00019178,2]
[347867290,1736172633480,-500.0,0.00019178,2]
[347867291,1736172633490,-500.0,0.00019178,2]
[347867292,1736172633499,-2299.38,0.00019178,2]
[347867293,1736172633509,-765.87,0.00019178,2]
[347867294,1736172633518,-500.0,0.00019178,2]
[347867295,1736172633529,-500.0,0.00019178,2]
[347867296,1736172633540,-500.0,0.00019178,2]
[347867297,1736172633550,-500.0,0.00019178,2]
[347867298,1736172633560,-396.02622332,0.00019178,2]
[347867299,1736172633578,-11271.92,0.00019178,2]
[347867300,1736172633589,-500.0,0.00019178,2]
[347867301,1736172633599,-500.0,0.00019178,2]
[347867302,1736172633609,-500.0,0.00019178,2]
[347867303,1736172633619,-1133.24,0.00019178,2]
[347867304,1736172633630,-831.99,0.00019178,2]
[347867305,1736172633640,-500.0,0.00019178,2]
[347867306,1736172633652,-500.0,0.00019178,2]
[347867307,1736172633662,-962.8,0.00019178,2]
[347867308,1736172633673,-500.0,0.00019178,2]
[347867309,1736172633724,-500.0,0.00019178,2]
[347867310,1736172633735,-500.0,0.00019178,2]
[347867311,1736172633746,-500.0,0.00019178,2]
[347867312,1736172633757,-500.0,0.00019178,2]
[347867313,1736172633767,-500.0,0.00019178,2]
[347867314,1736172633778,-500.0,0.00019178,2]
[347867315,1736172633788,-832.67,0.00019178,2]
[347867316,1736172633799,-500.0,0.00019178,2]
[347867317,1736172633809,-500.0,0.00019178,2]
[347867318,1736172633819,-500.0,0.00019178,2]
[347867319,1736172633829,-500.0,0.00019178,2]
[347867320,1736172633838,-500.0,0.00019178,2]
[347867321,1736172633848,-500.0,0.00019178,2]
[347867322,1736172633858,-500.0,0.00019178,2]
[347867323,1736172633868,-500.0,0.00019178,2]
[347867324,1736172633878,-500.0,0.00019178,2]
[347867325,1736172633888,-350.70509447,0.00019178,2]
[347867326,1736172633898,-500.0,0.00019178,2]
[347867327,1736172633908,-500.0,0.00019178,2]
[347867328,1736172633918,-500.0,0.00019178,2]
[347867329,1736172633929,-162.638744,0.00019178,2]
[347867330,1736172633939,-150.133,0.00019294,2]
[347867331,1736172633949,-150.0,0.00019294,2]
[347867332,1736172633960,-150.0,0.00019294,2]
[347867333,1736172633971,-2081.0,0.00019294,2]
[347867334,1736172633981,-535.0,0.00019294,2]
[347867335,1736172633991,-2318.0,0.00019294,2]
[347867336,1736172634001,-500.0,0.00019333,2]
[347867337,1736172634011,-1030.62,0.00019416,3]
[347867338,1736172634021,-190.04928245,0.00019451,2]
[347867339,1736172634031,-404.49187497,0.00019451,2]
[347867340,1736172634040,-606.33670572,0.00019452,2]
[347867341,1736172634050,-14697.28474725,0.00019452,2]
[347867342,1736172634060,-500.0,0.00019452,3]
[347867343,1736172634070,-500.0,0.00019452,3]
[347867344,1736172634080,-256.95411532,0.00019452,3]
[347867345,1736172634089,-500.0,0.00019452,3]
[347867346,1736172634099,-500.0,0.00019452,3]
[347867347,1736172634108,-500.0,0.00019452,3]
[347867348,1736172634118,-500.0,0.00019452,3]
[347867349,1736172634128,-500.0,0.00019452,3]
[347867350,1736172634137,-500.0,0.00019452,3]
[347867351,1736172634147,-500.0,0.00019452,3]
[347867352,1736172634157,-500.0,0.00019452,3]
[347867353,1736172634166,-500.0,0.00019452,3]
[347867354,1736172634177,-500.0,0.00019452,3]
[347867355,1736172634187,-500.0,0.00019452,3]
[347867356,1736172634198,-209.55889495,0.00019452,3]
[347867357,1736172634208,-500.0,0.00019452,3]
[347867358,1736172634218,-500.0,0.00019452,3]
[347867359,1736172634229,-3182.06,0.00019452,3]
[347867360,1736172634239,-581.81,0.00019452,3]
[347867361,1736172634249,-1747.11,0.00019452,3]
[347867362,1736172634259,-1091.28,0.00019452,3]
[347867363,1736172634272,-500.0,0.00019452,3]
[347867364,1736172634281,-500.0,0.00019452,3]
[347867365,1736172634291,-500.0,0.00019452,3]
[347867366,1736172634301,-500.0,0.00019452,3]
[347867367,1736172634311,-500.0,0.00019452,3]
[347867368,1736172634321,-166.78,0.00019452,3]
[347867369,1736172634331,-2299.38,0.00019452,3]
[347867370,1736172634340,-765.87,0.00019452,3]
[347867371,1736172634350,-500.0,0.00019452,3]
[347867372,1736172634359,-9040.80019063,0.00019452,3]
[347867373,1736172634447,-764.15590357,0.00019452,3]
[347867388,1736172638425,-264.63951413,0.00018986,2]
[347867389,1736172638435,-37.15048587,0.00019178,2]
[347867390,1736172638447,-462.84951413,0.00019178,2]
[347867391,1736172638456,-1466.9639058,0.00019452,3]
[347867392,1736172638466,-500.0,0.00019452,3]
[347867393,1736172638475,-141.29484844,0.00019452,3]
[347867394,1736172638537,-991.94515156,0.00019452,3]
[347867395,1736172638546,-831.99,0.00019452,3]
[347867396,1736172638556,-500.0,0.00019452,3]
[347867397,1736172638566,-962.8,0.00019452,3]
[347867399,1736172638575,-500.0,0.00019452,3]
[347867400,1736172638586,-500.0,0.00019452,3]
[347867403,1736172638596,-500.0,0.00019452,3]
[347867404,1736172638605,-215.07304471,0.00019452,3]
[347867405,1736172638615,-832.67,0.00019452,3]
[347867406,1736172638624,-500.0,0.00019452,3]
[347867407,1736172638634,-500.0,0.00019452,3]
[347867408,1736172638643,-500.0,0.00019452,3]
[347867409,1736172638653,-500.0,0.00019452,3]
[347867410,1736172638662,-500.0,0.00019452,3]
[347867411,1736172638671,-500.0,0.00019452,3]
[347867412,1736172638681,-500.0,0.00019452,3]
[347867413,1736172638690,-407.860576,0.00019452,3]
[347867414,1736172638700,-500.0,0.00019452,3]
[347867415,1736172638710,-500.0,0.00019452,3]
[347867416,1736172638719,-500.0,0.00019452,3]
[347867417,1736172638729,-524.79450242,0.00019452,3]
[347867418,1736172638738,-1618.81211704,0.00019489,2]
[347867419,1736172638748,-500.0,0.00019565,2]